bitfinex/quotes_SOLUSD_20250216
["timestamp","ask_amount","ask_price","bid_price","bid_amount"]
[1739736540222,0.063,189.13,189.09,13.44184853]
[1739736540427,8.75676942,189.13,189.09,13.44184853]
[1739736541452,8.69376942,189.11,189.09,0.03]
[1739736541751,8.69376942,189.1,189.09,0.03]
[1739736542526,13.98196942,189.1,189.09,0.03]
[1739736542850,8.69376942,189.11,189.09,0.03]
[1739736544046,8.69376942,189.12,189.09,0.03]
[1739736545952,8.69376942,189.1,189.09,0.03]
[1739736546140,15.58426942,189.1,189.09,0.03]
[1739736552358,8.69376942,189.11,189.09,0.03]
[1739736552573,8.69376942,189.1,189.09,0.03]
[1739736554188,13.98196942,189.1,189.09,0.03]
[1739736554394,14.04496942,189.1,189.09,0.03]
[1739736556981,48.8200471,189.1,189.09,0.03]
[1739736558789,48.8200471,189.1,189.01,0.03]
[1739736558988,8.69376942,189.03,189.01,0.03]
[1739736559785,8.69376942,189.02,189.01,0.03]
[1739736560688,8.69376942,189.03,189.01,0.03]
[1739736561076,13.98386942,189.03,189.01,0.03]
[1739736562088,8.69376942,189.02,189.01,0.03]
[1739736563090,13.98416942,189.02,189.01,0.03]
[1739736565112,20.0,188.99,188.95,0.03]
[1739736565299,8.69376942,188.96,188.95,0.03]
[1739736566273,13.98586942,188.96,188.95,0.03]
[1739736567282,15.56216942,188.96,188.95,0.0001]
[1739736570199,8.69376942,188.96,188.95,0.0001]
[1739736571397,8.69376942,188.97,188.95,0.0001]
[1739736572100,8.69376942,188.98,188.95,0.0001]
[1739736572293,8.69376942,188.99,188.95,0.0001]
[1739736572607,8.69376942,189.0,188.95,0.0001]
[1739736572982,8.69376942,188.99,188.95,0.0001]
[1739736573902,8.69376942,188.98,188.95,0.0001]
[1739736574616,13.6170771,188.98,188.95,0.0001]
[1739736575791,13.6170771,188.99,188.95,0.0001]
[1739736576180,13.6170771,189.01,188.95,0.0001]
[1739736576417,13.6170771,189.01,188.95,27.02902563]
[1739736576601,13.6170771,189.01,188.97,13.41184853]
[1739736577903,13.6170771,189.04,188.97,27.02892563]
[1739736578589,0.063,189.01,188.97,27.02892563]
[1739736578807,0.063,189.01,188.99,13.41184853]
[1739736579998,0.063,189.01,188.97,13.6170771]
[1739736580203,0.063,189.01,188.98,25.30284853]
[1739736580512,0.063,189.01,188.98,38.91992563]
[1739736580898,0.063,189.01,188.98,25.30284853]
[1739736583009,0.063,189.01,188.98,13.41184853]
[1739736585308,0.063,189.01,188.98,18.70324853]
[1739736589724,0.063,189.01,188.98,32.32032563]
[1739736590722,0.063,189.01,188.98,18.70324853]
[1739736592726,0.063,189.01,188.98,32.32032563]
[1739736596725,0.063,189.01,188.98,27.41234953]
[1739736601033,0.063,189.01,189.0,22.12094953]
[1739736601217,0.063,189.01,189.0,49.39830776]
[1739736601417,0.063,189.01,189.0,48.60494953]
[1739736601621,0.063,189.01,189.0,39.89584853]
[1739736601821,0.063,189.01,189.0,48.60494953]
[1739736602021,0.063,189.01,189.0,53.89594953]
[1739736606446,0.063,189.01,189.0,135.39594953]
[1739736613738,0.063,189.01,189.0,94.91184853]
[1739736615453,0.063,189.01,189.0,108.91194953]
[1739736616031,0.063,189.01,189.0,155.94835353]
[1739736616334,0.063,189.01,189.0,156.94835353]
[1739736616641,0.063,189.1,189.05,13.41184853]
[1739736616836,0.063,189.1,189.07,8.709101]
[1739736617151,0.063,189.1,189.08,13.41184853]
[1739736618068,0.063,189.1,189.08,18.70054853]
[1739736618234,0.063,189.1,189.08,13.41184853]
[1739736619961,0.063,189.1,189.05,90.209101]
[1739736620254,0.063,189.1,189.05,81.5]
[1739736620554,0.063,189.1,189.06,13.41184853]
[1739736621151,8.772101,189.1,189.06,13.41184853]
[1739736621447,8.709101,189.08,189.01,96.624801]
[1739736621650,8.709101,189.08,189.02,13.41184853]
[1739736621957,8.772101,189.1,189.03,8.709101]
[1739736623257,5.2884,189.09,189.03,8.709101]
[1739736624158,5.2884,189.09,189.01,81.5]
[1739736624159,8.709101,189.07,189.01,81.5]
[1739736624553,8.709101,189.07,189.02,13.41184853]
[1739736624746,8.709101,189.06,189.02,13.41184853]
[1739736625157,1.5572,189.08,189.02,13.41184853]
[1739736625158,8.709101,189.07,189.02,13.41184853]
[1739736625743,6.8462,189.08,189.02,27.41124953]
[1739736626040,6.8462,189.08,189.02,22.12094953]
[1739736626453,15.555301,189.08,189.02,13.41184853]
[1739736627661,15.555301,189.08,189.02,18.70214853]
[1739736627954,15.555301,189.08,189.02,13.41184853]
[1739736629659,8.709101,189.07,189.02,13.41184853]
[1739736629862,5.2893,189.06,189.02,13.41184853]
[1739736630573,13.998401,189.06,189.02,13.41184853]
[1739736630859,10.266301,189.08,189.02,13.41184853]
[1739736631058,5.3512,189.1,189.05,13.41184853]
[1739736631441,5.3512,189.1,189.04,13.41184853]
[1739736631844,0.063,189.1,189.04,8.709101]
[1739736632054,0.063,189.1,189.05,8.709101]
[1739736632559,0.063,189.1,189.07,13.41184853]
[1739736632764,0.063,189.1,189.08,8.709101]
[1739736632976,0.063,189.1,189.09,22.12094953]
[1739736633440,0.063,189.1,189.09,27.40934953]
[1739736634647,0.063,189.1,189.09,150.86708591]
[1739736634846,0.063,189.1,189.09,150.07405353]
[1739736636542,0.063,189.1,189.09,162.27405353]
[1739736637746,0.063,189.1,189.09,127.43764953]
[1739736639862,0.063,189.1,189.09,162.27405353]
[1739736640049,0.063,189.1,189.09,163.27405353]
[1739736640365,0.063,189.1,189.09,164.27405353]
[1739736641450,0.0001,189.1,189.09,164.27405353]
[1739736641663,0.063,189.13,189.12,20.0]
[1739736641848,0.063,189.13,189.12,29.50184902]
[1739736642259,0.063,189.13,189.12,48.20129755]
[1739736645146,0.063,189.13,189.12,141.90129755]
[1739736645350,0.063,189.13,189.12,141.10854953]
[1739736661293,0.0001,189.13,189.12,142.10854953]
[1739736661759,0.0001,189.13,189.12,143.10854953]
[1739736661967,0.0001,189.15,189.14,2.0]
[1739736662162,0.0001,189.15,189.14,118.61357922]
[1739736662364,0.0001,189.15,189.14,117.82094953]
[1739736663877,0.0001,189.15,189.14,123.10794953]
[1739736664187,0.03,189.18,189.17,28.709101]
[1739736664371,0.03,189.18,189.17,42.91353162]
[1739736665887,0.03,189.18,189.17,48.19973162]
[1739736666889,0.063,189.22,189.19,9.709101]
[1739736667086,0.063,189.22,189.2,14.41184853]
[1739736667388,0.063,189.22,189.2,23.12094953]
[1739736667979,0.063,189.22,189.2,28.40634953]
[1739736668162,0.063,189.22,189.2,27.40634953]
[1739736668369,0.063,189.22,189.2,28.19873649]
[1739736673104,0.063,189.21,189.2,121.10634953]
[1739736675832,0.03,189.24,189.23,34.41184853]
[1739736676008,0.03,189.24,189.23,138.61321718]
[1739736676193,0.03,189.24,189.23,137.82094953]
[1739736677694,0.03,189.24,189.23,143.10544953]
[1739736678095,0.03,189.26,189.24,14.41184853]
[1739736678307,0.03,189.26,189.25,14.20408521]
[1739736678512,0.03,189.26,189.25,22.91318621]
[1739736681216,0.03,189.26,189.25,29.19718621]
[1739736682495,0.03,189.26,189.25,28.19718621]
[1739736683624,0.03,189.26,189.25,29.19718621]
[1739736683801,0.03,189.26,189.25,122.89718621]
[1739736683995,0.03,189.26,189.25,122.10494953]
[1739736684195,0.03,189.26,189.25,121.10494953]
[1739736684514,0.03,189.26,189.25,122.10494953]
[1739736686326,0.063,189.29,189.28,20.0]
[1739736686524,0.063,189.29,189.28,137.61305598]
[1739736686693,0.063,189.32,189.3,1.0]
[1739736686896,0.063,189.32,189.31,42.91296277]
[1739736687403,0.063,189.32,189.31,48.19526277]
[1739736689723,0.063,189.32,189.31,141.89526277]
[1739736689923,0.063,189.32,189.31,141.10324953]
[1739736692748,0.063,189.32,189.31,135.82094953]
[1739736695246,0.063,189.32,189.31,141.10324953]
[1739736695546,0.063,189.32,189.31,128.90324953]
[1739736695757,0.063,189.32,189.31,123.62094953]
[1739736697236,0.063,189.32,189.31,128.90324953]
[1739736706484,0.063,189.32,189.31,47.40324953]
[1739736706679,1.6231,189.4,189.35,20.0]
[1739736706883,1.5336,189.45,189.4,13.41184853]
[1739736707471,8.709101,189.43,189.36,20.909101]
[1739736707793,8.709101,189.42,189.35,28.709101]
[1739736707955,8.709101,189.43,189.36,22.12094953]
[1739736708362,8.709101,189.41,189.36,13.41184853]
[1739736708769,8.709101,189.43,189.36,13.41184853]
[1739736708955,1.5336,189.45,189.39,8.709101]
[1739736709162,1.5336,189.45,189.4,8.709101]
[1739736709461,1.5336,189.45,189.39,8.709101]
[1739736709660,8.709101,189.44,189.37,13.41184853]
[1739736709858,6.812,189.45,189.36,12.2]
[1739736709859,8.709101,189.42,189.36,12.2]
[1739736710056,8.709101,189.42,189.35,33.990301]
[1739736710259,10.212701,189.41,189.35,20.0]
[1739736710457,10.212701,189.41,189.36,13.41184853]
[1739736710458,8.709101,189.4,189.36,13.41184853]
[1739736710958,13.988901,189.4,189.36,20.0]
[1739736711165,8.709101,189.37,189.3,13.991601]
[1739736711369,8.709101,189.37,189.34,13.41184853]
[1739736711850,8.709101,189.37,189.3,13.991601]
[1739736712060,8.709101,189.37,189.31,13.41184853]
[1739736712257,8.709101,189.35,189.29,0.063]
[1739736712459,8.709101,189.34,189.29,0.063]
[1739736712964,8.709101,189.33,189.29,0.063]
[1739736713159,10.212701,189.3,189.29,0.063]
[1739736714279,15.495301,189.3,189.29,0.063]
[1739736714475,1.5036,189.3,189.29,0.063]
[1739736718979,13.990901,189.33,189.29,0.063]
[1739736719179,8.709101,189.32,189.29,0.063]
[1739736719364,8.709101,189.31,189.29,0.063]
[1739736720298,8.709101,189.3,189.29,0.063]
[1739736720973,8.709101,189.31,189.29,0.063]
[1739736721375,13.991501,189.31,189.29,0.063]
[1739736721579,8.709101,189.32,189.29,0.063]
[1739736721762,10.258901,189.34,189.29,0.063]
[1739736722569,1.5498,189.34,189.29,13.47484853]
[1739736723465,10.258901,189.34,189.29,13.47484853]
[1739736723867,1.5498,189.34,189.29,27.46674953]
[1739736724890,13.990101,189.36,189.29,27.46674953]
[1739736725260,8.709101,189.35,189.29,13.47484853]
[1739736726783,13.990401,189.35,189.29,13.47484853]
[1739736727372,13.990401,189.35,189.29,18.75764853]
[1739736727779,8.709101,189.36,189.29,22.18394953]
[1739736727983,8.709101,189.33,189.29,0.063]
[1739736728492,8.709101,189.34,189.29,0.063]
[1739736728995,5.2816,189.34,189.29,0.063]
[1739736729489,8.709101,189.35,189.29,13.47484853]
[1739736729694,13.990001,189.36,189.29,8.772101]
[1739736729916,8.709101,189.35,189.29,0.063]
[1739736730573,13.990001,189.36,189.3,13.41184853]
[1739736730774,1.5498,189.38,189.32,13.41184853]
[1739736730983,6.8302,189.38,189.33,8.709101]
[1739736731310,6.8302,189.38,189.32,8.709101]
[1739736732207,6.8302,189.38,189.32,22.12094953]
[1739736732513,0.03,189.35,189.33,13.41184853]
[1739736732974,0.03,189.35,189.34,8.709101]
[1739736733172,0.03,189.35,189.34,22.12094953]
[1739736734970,0.03,189.35,189.34,27.40244953]
[1739736740094,0.03,189.35,189.34,28.19443454]
[1739736740295,0.03,189.35,189.34,121.89443454]
[1739736740483,0.03,189.35,189.34,121.10244953]
[1739736743569,0.03,189.42,189.38,20.0]
[1739736743802,0.03,189.42,189.4,28.709101]
[1739736744997,0.03,189.42,189.4,20.0]
[1739736745200,0.03,189.42,189.4,28.709101]
[1739736745500,0.03,189.42,189.4,20.0]
[1739736745700,0.03,189.42,189.41,13.41184853]
[1739736746914,0.03,189.42,189.39,20.909101]
[1739736746915,0.03,189.42,189.39,12.2]
[1739736747285,0.03,189.42,189.38,13.41184853]
[1739736747704,8.709101,189.41,189.37,13.41184853]
[1739736748413,8.659101,189.41,189.36,13.41184853]
[1739736748996,13.938801,189.41,189.36,13.41184853]
[1739736750411,5.2797,189.41,189.36,13.41184853]
[1739736751300,13.988801,189.41,189.36,13.41184853]
[1739736751609,5.2797,189.41,189.36,13.41184853]
[1739736752104,8.739101,189.42,189.36,8.709101]
[1739736752289,14.018401,189.42,189.37,13.41184853]
[1739736754411,0.03,189.42,189.38,22.12094953]
[1739736754907,0.03,189.42,189.37,8.709101]
[1739736755106,0.03,189.42,189.38,13.41184853]
[1739736755609,0.03,189.42,189.37,13.41184853]
[1739736755911,8.739101,189.42,189.37,13.41184853]
[1739736756092,8.739101,189.42,189.36,13.41184853]
[1739736756489,14.018401,189.42,189.36,13.41184853]
[1739736757014,14.018401,189.42,189.36,18.69264853]
[1739736757212,14.018401,189.42,189.36,18.75564853]
[1739736757592,0.03,189.42,189.36,27.46474953]
[1739736758290,0.03,189.42,189.37,8.709101]
[1739736758610,0.03,189.42,189.39,13.41184853]
[1739736759918,0.03,189.42,189.38,13.41184853]
[1739736760113,0.03,189.42,189.38,22.12094953]
[1739736761012,0.03,189.42,189.39,5.2801]
[1739736763024,0.03,189.42,189.39,8.709101]
[1739736763325,0.03,189.42,189.4,5.2795]
[1739736764314,0.03,189.42,189.4,18.69134853]
[1739736764523,0.03,189.42,189.41,13.41184853]
[1739736765503,8.739101,189.42,189.38,25.61184853]
[1739736765702,8.709101,189.41,189.38,25.61184853]
[1739736766115,8.739101,189.42,189.38,25.61184853]
[1739736767126,8.739101,189.42,189.38,13.41184853]
[1739736767501,8.709101,189.41,189.38,13.41184853]
[1739736768710,14.018401,189.42,189.38,13.41184853]
[1739736768903,0.03,189.42,189.38,13.41184853]
[1739736769215,0.03,189.42,189.39,13.41184853]
[1739736769920,0.03,189.41,189.39,13.41184853]
[1739736770800,0.03,189.41,189.39,18.69174853]
[1739736773203,0.03,189.41,189.4,8.709101]
[1739736775119,0.03,189.41,189.4,39.60074953]
[1739736775312,0.03,189.41,189.4,40.39245119]
[1739736775519,0.03,189.41,189.4,39.60074953]
[1739736778835,0.03,189.41,189.4,27.40074953]
[1739736780031,0.03,189.41,189.4,18.69164853]
[1739736781129,0.03,189.41,189.4,13.41184853]
[1739736790446,8.739101,189.41,189.4,13.41184853]
[1739736790639,8.739101,189.41,189.38,0.063]
[1739736790835,8.709101,189.4,189.38,0.063]
[1739736791422,8.709101,189.39,189.38,0.063]
[1739736796835,8.709101,189.4,189.38,0.063]
[1739736797042,8.739101,189.41,189.38,0.063]
[1739736798737,8.709101,189.39,189.38,0.063]
[1739736803345,13.989201,189.39,189.38,0.063]
[1739736808367,15.492601,189.39,189.36,0.063]
[1739736808665,8.709101,189.37,189.36,0.063]
[1739736810468,13.989701,189.37,189.36,0.063]
[1739736811166,48.826105,189.37,189.36,0.063]
[1739736811379,62.027705,189.37,189.32,0.063]
[1739736811683,8.709101,189.33,189.32,0.063]
[1739736812950,13.990801,189.33,189.32,0.063]
[1739736814954,8.709101,189.33,189.32,0.063]
[1739736815156,13.990801,189.33,189.32,0.063]
[1739736825198,13.990801,189.33,189.29,0.063]
[1739736825377,8.709101,189.3,189.29,0.063]
[1739736826080,18.49,189.29,189.23,0.063]
[1739736826295,8.709101,189.24,189.23,0.063]
[1739736828201,13.993301,189.24,189.23,0.063]
[1739736828385,8.709101,189.24,189.23,0.063]
[1739736834291,13.993301,189.24,189.23,0.063]
[1739736834697,8.709101,189.24,189.23,0.063]
[1739736835499,13.993301,189.24,189.23,0.063]
[1739736852813,13.993301,189.24,189.23,0.0001]
[1739736853013,29.714701,189.24,189.19,0.063]
[1739736853240,29.714701,189.24,189.19,0.0001]
[1739736853241,17.418202,189.2,189.19,0.0001]
[1739736853524,18.418202,189.2,189.17,0.063]
[1739736853732,21.0,189.2,189.17,0.063]
[1739736854731,5.2856,189.19,189.17,0.063]
[1739736854937,43.545505,189.18,189.17,0.063]
[1739736856815,48.831405,189.18,189.17,0.063]
[1739736862246,13.995001,189.18,189.17,0.063]
[1739736864322,48.831405,189.18,189.17,0.063]
[1739736865248,48.894405,189.18,189.17,0.063]
[1739736882261,62.109305,189.18,189.13,0.063]
[1739736882566,8.709101,189.14,189.13,0.063]
[1739736882738,13.996101,189.14,189.13,0.063]
[1739736900977,13.996101,189.14,189.1,0.063]
[1739736900978,1.0,189.12,189.1,0.063]
[1739736901154,43.545505,189.11,189.1,0.063]
[1739736901566,8.709101,189.11,189.1,0.063]
[1739736901970,13.997001,189.11,189.1,0.063]
[1739736902369,64.053205,189.11,189.04,0.063]
[1739736902661,8.709101,189.05,189.04,0.063]
[1739736904763,13.998701,189.05,189.04,0.063]
[1739736907090,8.709101,189.05,189.04,0.063]
[1739736907571,13.998701,189.05,189.04,0.063]
[1739736908678,15.998701,189.05,189.04,0.063]
[1739736908881,8.709101,189.02,189.01,0.03]
[1739736910396,13.999501,189.02,189.01,0.03]
[1739736911890,14.999501,189.02,189.01,0.03]
[1739736912187,49.835905,189.02,189.01,0.03]
[1739736914063,50.835905,189.02,189.01,0.03]
[1739736914567,49.835905,189.02,189.01,0.03]
[1739736914774,14.999501,189.02,189.01,0.03]
[1739736915093,15.999501,189.02,189.01,0.03]
[1739736915587,13.999501,189.02,189.01,0.03]
[1739736916094,8.709101,189.02,189.01,0.03]
[1739736916279,8.709101,189.03,189.01,0.03]
[1739736916587,82.3,189.09,189.01,13.44184853]
[1739736916771,5.3514,189.1,189.01,13.44184853]
[1739736916963,8.709101,189.06,189.01,13.44184853]
[1739736918076,8.709101,189.08,189.01,27.44144953]
[1739736918587,0.063,189.1,189.05,13.41184853]
[1739736919580,0.063,189.1,189.07,13.41184853]
[1739736920895,8.709101,189.08,189.06,6.3841]
[1739736921092,8.709101,189.07,189.06,6.3841]
[1739736921679,8.709101,189.07,189.02,1.5617]
[1739736921880,92.009101,189.09,189.02,1.5617]
[1739736922084,8.709101,189.03,189.01,6.4141]
[1739736922278,8.709101,189.02,189.01,6.4141]
[1739736923798,8.709101,189.02,189.01,0.03]
[1739736924293,14.999501,189.02,189.01,0.03]
[1739736927490,15.999501,189.02,189.01,0.0001]
[1739736927914,50.835905,189.02,189.01,0.0001]
[1739736928214,50.835905,189.02,188.98,0.03]
[1739736928215,21.0,188.99,188.98,0.03]
[1739736928387,29.709101,188.99,188.98,0.03]
[1739736929117,30.709101,188.99,188.95,0.0001]
[1739736931005,16.001201,188.96,188.95,0.0001]
[1739736933703,14.001201,188.96,188.95,0.0001]
[1739736934607,15.001201,188.96,188.95,0.0001]
[1739736935304,14.001201,188.96,188.95,0.0001]
[1739736935482,15.001201,188.96,188.95,0.0001]
[1739736937104,16.001201,188.96,188.95,0.0001]
[1739736937298,16.001201,188.96,188.91,0.03]
[1739736937299,1.0,188.93,188.91,0.03]
[1739736937499,44.545505,188.92,188.91,0.03]
[1739736937802,45.545505,188.92,188.91,0.0001]
[1739736938011,50.838705,188.92,188.91,0.0001]
[1739736938201,50.838705,188.92,188.9,0.03]
[1739736938202,22.0,188.89,188.82,0.03]
[1739736938502,8.709101,188.86,188.82,0.03]
[1739736939787,14.004001,188.86,188.82,0.03]
[1739736941511,8.709101,188.86,188.82,0.03]
[1739736948899,14.004001,188.86,188.82,0.03]
[1739736952599,8.709101,188.86,188.82,0.03]
[1739736953000,8.709101,188.88,188.84,1.5751]
[1739736953212,8.709101,188.87,188.84,1.5751]
[1739736953520,8.709101,188.86,188.84,1.5751]
[1739736954119,14.004001,188.86,188.82,0.03]
[1739736955617,15.004001,188.86,188.82,0.03]
[1739736955817,14.004001,188.86,188.82,0.03]
[1739736956025,15.004001,188.86,188.82,0.03]
[1739736956403,14.004001,188.86,188.82,0.03]
[1739736957703,8.709101,188.86,188.82,0.03]
[1739736957919,8.709101,188.87,188.82,0.03]
[1739736958110,8.709101,188.87,188.82,13.44184853]
[1739736958625,8.709101,188.86,188.82,13.44184853]
[1739736959206,8.709101,188.86,188.82,0.03]
[1739736960727,14.004001,188.86,188.82,0.03]
[1739736961023,15.004001,188.86,188.82,0.03]
[1739736961628,14.004001,188.86,188.82,0.03]
[1739736962310,15.004001,188.86,188.85,0.0001]
[1739736962825,14.004001,188.86,188.85,0.0001]
[1739736963016,15.004001,188.86,188.85,0.0001]
[1739736968728,14.004001,188.86,188.85,0.0001]
[1739736968919,15.004001,188.86,188.85,0.0001]
[1739736972437,14.004001,188.86,188.85,0.0001]
[1739736973833,14.067001,188.86,188.85,0.0001]
[1739736975420,8.772101,188.86,188.85,0.0001]
[1739736977344,14.067001,188.86,188.85,0.0001]
[1739736978245,0.063,188.86,188.85,0.0001]
[1739736979026,8.772101,188.86,188.85,0.0001]
[1739736980640,0.063,188.86,188.85,0.0001]
[1739736981654,0.063,188.86,188.85,21.01624853]
[1739736983426,0.063,188.86,188.85,26.31144853]
[1739736983847,0.063,188.86,188.85,35.02054953]
[1739736984347,0.063,188.86,188.85,21.01624853]
[1739736984549,0.063,188.86,188.85,26.31144853]
[1739736985049,0.063,188.86,188.85,35.02054953]
[1739736987549,0.063,188.9,188.86,13.41184853]
[1739736987727,0.063,188.9,188.85,48.25854953]
[1739736987728,0.063,188.9,188.89,14.964801]
[1739736988054,0.063,188.9,188.89,28.37664953]
[1739736989787,0.063,188.9,188.89,33.67064953]
[1739736992963,0.063,188.9,188.89,34.46447683]
[1739736994253,0.063,188.9,188.89,36.04347683]
[1739736995789,0.063,188.9,188.89,117.54347683]
[1739736995997,0.063,188.9,188.89,116.74964953]
[1739737003468,0.063,188.9,188.89,111.45564953]
[1739737003675,0.063,188.9,188.89,101.16754853]
[1739737003885,0.063,188.9,188.89,109.87664953]
[1739737004084,0.063,188.9,188.89,115.17064953]
[1739737011497,0.063,188.9,188.89,13.41184853]
[1739737011693,0.063,188.9,188.89,18.70584853]
[1739737011992,0.063,188.9,188.89,27.41494953]
[1739737012566,0.063,188.9,188.89,108.91494953]
[1739737013994,0.063,188.98,188.92,20.0]
[1739737014191,0.063,188.98,188.95,8.709101]
[1739737015088,0.063,188.98,188.96,13.41184853]
[1739737016196,0.063,188.98,188.94,8.709101]
[1739737017794,0.063,188.98,188.96,13.41184853]
[1739737019197,0.063,188.98,188.94,8.709101]
[1739737021995,0.063,188.98,188.96,13.41184853]
[1739737022478,0.063,188.98,188.97,22.12094953]
[1739737023897,0.063,188.98,188.97,22.91447729]
[1739737024274,0.063,188.98,188.97,22.12094953]
[1739737025798,0.063,188.98,188.97,13.41184853]
[1739737027199,8.772101,188.98,188.91,8.709101]
[1739737027379,8.772101,188.98,188.92,13.41184853]
[1739737027713,0.063,188.98,188.92,22.12094953]
[1739737027891,5.3545,188.98,188.92,22.12094953]
[1739737029585,5.3545,188.98,188.93,8.709101]
[1739737029782,5.3545,188.98,188.94,13.41184853]
[1739737030303,5.3545,188.98,188.92,8.709101]
[1739737030676,0.063,188.98,188.92,14.002301]
[1739737030882,0.063,188.98,188.93,13.41184853]
[1739737031088,0.063,188.98,188.93,22.12094953]
[1739737031999,0.063,188.98,188.93,13.41184853]
[1739737032891,0.063,188.98,188.91,8.709101]
[1739737033202,8.709101,188.96,188.9,81.53]
[1739737033705,8.709101,188.96,188.91,13.41184853]
[1739737034204,14.001401,188.96,188.91,13.41184853]
[1739737035014,8.772101,188.98,188.91,13.41184853]
[1739737035185,0.063,188.98,188.93,22.12094953]
[1739737035386,0.063,188.98,188.94,22.12094953]
[1739737035684,0.063,188.98,188.9,81.53]
[1739737035685,8.709101,188.96,188.9,81.53]
[1739737035885,8.709101,188.96,188.9,0.03]
[1739737036086,14.001701,188.95,188.9,0.03]
[1739737040012,14.001201,188.96,188.9,13.44184853]
[1739737041010,14.001201,188.96,188.9,5.3237]
[1739737041306,5.2921,188.96,188.91,13.41184853]
[1739737041722,14.001201,188.96,188.91,13.41184853]
[1739737042013,14.001201,188.96,188.9,13.44184853]
[1739737042403,8.709101,188.95,188.9,0.03]
[1739737043211,14.001201,188.96,188.9,0.03]
[1739737043806,10.338201,188.97,188.9,14.032701]
[1739737044005,0.063,188.98,188.94,8.709101]
[1739737044211,0.063,188.98,188.95,13.41184853]
[1739737044709,0.063,188.98,188.94,13.41184853]
[1739737045587,0.063,188.98,188.95,8.709101]
[1739737045793,0.063,188.98,188.97,13.41184853]
[1739737045985,0.063,188.98,188.97,22.12094953]
[1739737046190,0.063,188.98,188.97,27.41274953]
[1739737049010,0.063,188.98,188.97,28.20618114]
[1739737051104,0.063,189.05,189.04,22.12094953]
[1739737052525,0.063,189.05,189.04,27.41074953]
[1739737053224,0.063,189.05,189.04,13.41184853]
[1739737057100,0.063,189.05,189.04,22.12094953]
[1739737058514,0.063,189.05,189.04,27.41074953]
[1739737059314,0.063,189.05,189.04,13.41184853]
[1739737059917,0.063,189.05,189.04,22.12094953]
[1739737060420,0.063,189.05,189.04,27.41074953]
[1739737061623,0.063,189.05,189.04,22.12094953]
[1739737061813,0.063,189.05,189.04,27.41074953]
[1739737064323,0.063,189.05,189.04,13.41184853]
[1739737065832,0.063,189.05,189.04,27.41074953]
[1739737074740,0.063,189.05,189.04,28.2039485]
[1739737075514,0.063,189.09,189.05,14.41184853]
[1739737075822,0.063,189.09,189.08,22.12094953]
[1739737076013,0.063,189.09,189.08,28.2026294]
[1739737080537,0.063,189.09,189.08,27.40964953]
[1739737081532,0.063,189.09,189.08,22.12094953]
[1739737082738,0.063,189.09,189.08,13.41184853]
[1739737083546,0.063,189.09,189.05,13.41184853]
[1739737083735,0.063,189.09,189.03,8.709101]
[1739737083943,8.772101,189.09,189.02,8.709101]
[1739737084138,0.063,189.09,189.03,8.709101]
[1739737084537,5.3514,189.09,189.04,13.41184853]
[1739737086440,0.063,189.09,189.06,8.709101]
[1739737086943,0.063,189.09,189.07,13.41184853]
[1739737087650,0.063,189.09,189.07,8.709101]
[1739737087851,0.063,189.09,189.08,22.12094953]
[1739737088639,0.063,189.09,189.08,27.40964953]
[1739737089750,0.063,189.09,189.08,62.24605353]
[1739737090248,0.063,189.09,189.08,27.40964953]